fUST/lending_fUST_20241120
["ID","MTS","AMOUNT","RATE_DAILY","PERIOD"]
[342730115,1732090241011,-501.36387026,0.00021917,7]
[342730117,1732090241020,-501.01062523,0.00021917,7]
[342730119,1732090241030,-500.0,0.00021917,7]
[342730121,1732090241039,-503.29886717,0.00021917,7]
[342730123,1732090241050,-502.13184482,0.00021917,7]
[342730125,1732090241059,-514.19980593,0.00021917,7]
[342730127,1732090241068,-502.28305039,0.00021917,7]
[342730129,1732090241078,-502.31614398,0.00021917,7]
[342730140,1732090241164,-502.34039319,0.00021917,7]
[342730142,1732090241174,-514.37821991,0.00021917,7]
[342730144,1732090241184,-503.0400057,0.00021917,7]
[342730146,1732090241193,-508.06925561,0.00021973,2]
[342730148,1732090241203,-501.23547662,0.00022082,7]
[342730150,1732090241214,-501.38676995,0.00022082,7]
[342730152,1732090241223,-512.10408385,0.00022082,7]
[342730154,1732090241232,-512.03943156,0.00022082,7]
[342730156,1732090241241,-639.99704733,0.00022082,7]
[342730158,1732090241250,-501.28224448,0.00022082,7]
[342730160,1732090241260,-501.2936088,0.00022082,7]
[342730162,1732090241269,-503.24074248,0.00022082,7]
[342730164,1732090241283,-500.0,0.00022082,7]
[342730166,1732090241292,-502.88718358,0.00022082,7]
[342730168,1732090241301,-500.0,0.00022082,7]
[342730170,1732090241310,-9098.29691303,0.00022152,2]
[342730172,1732090241320,-169.92424376,0.0002219,2]
[342730174,1732090241329,-177.49126526,0.0002219,2]
[342730176,1732090241339,-162.90512456,0.0002219,2]
[342730178,1732090241348,-500.0,0.00022191,7]
[342730180,1732090241359,-500.0,0.00022191,7]
[342730182,1732090241368,-500.0,0.00022191,7]
[342730184,1732090241377,-288.79433814,0.00022191,7]
[342730186,1732090241387,-500.0,0.00022191,7]
[342730188,1732090241396,-534.3,0.00022191,7]
[342730190,1732090241405,-500.0,0.00022191,7]
[342730192,1732090241415,-500.0,0.00022191,7]
[342730194,1732090241425,-209.66,0.00022191,7]
[342730196,1732090241435,-1180.33,0.00022191,7]
[342730198,1732090241444,-500.0,0.00022191,7]
[342730200,1732090241454,-271.4,0.00022191,7]
[342730202,1732090241467,-151.0,0.00022191,7]
[342730204,1732090241477,-154.93,0.00022191,7]
[342730206,1732090241487,-589.53,0.00022191,7]
[342730208,1732090241496,-171.48,0.00022191,7]
[342730210,1732090241507,-175.17,0.00022191,7]
[342730213,1732090241517,-504.71,0.00022191,7]
[342730215,1732090241527,-380.07,0.00022191,7]
[342730217,1732090241537,-629.46,0.00022191,7]
[342730218,1732090241546,-500.0,0.00022191,7]
[342730221,1732090241556,-582.23,0.00022191,7]
[342730223,1732090241566,-1004.57,0.00022191,7]
[342730225,1732090241575,-500.0,0.00022191,7]
[342730227,1732090241585,-231.92,0.00022191,7]
[342730229,1732090241594,-500.06,0.00022191,7]
[342730231,1732090241604,-363.08,0.00022191,7]
[342730233,1732090241613,-153.73,0.00022191,7]
[342730235,1732090241623,-500.0,0.00022191,7]
[342730237,1732090241632,-500.0,0.00022191,7]
[342730239,1732090241642,-500.0,0.00022191,7]
[342730241,1732090241651,-487.9,0.00022191,7]
[342730243,1732090241661,-500.0,0.00022191,7]
[342730245,1732090241670,-257.10562233,0.00022191,7]
[342730247,1732090241679,-541.79,0.00022191,7]
[342730249,1732090241688,-500.0,0.00022191,7]
[342730251,1732090241698,-460.0,0.00022191,7]
[342730253,1732090241707,-169.52180815,0.00022191,7]
[342730255,1732090241719,-727.53,0.00022191,7]
[342730257,1732090241729,-500.0,0.00022191,7]
[342730259,1732090241738,-500.0,0.00022191,7]
[342730260,1732090241747,-500.0,0.00022191,7]
[342730261,1732090241756,-276.37,0.00022191,7]
[342730262,1732090241766,-500.0,0.00022191,7]
[342730263,1732090241776,-289.05,0.00022191,7]
[342730264,1732090241786,-500.0,0.00022191,7]
[342730265,1732090241796,-153.61009303,0.00022191,7]
[342730266,1732090241805,-500.0,0.00022356,7]
[342730267,1732090241814,-563.72,0.00022356,7]
[342730268,1732090241823,-500.0,0.00022465,7]
[342730269,1732090241832,-226.73,0.00022465,7]
[342730270,1732090241841,-197.68,0.00022465,7]
[342730271,1732090241850,-500.0,0.00022465,7]
[342730272,1732090241860,-207.53,0.00022465,7]
[342730273,1732090241870,-500.0,0.00022465,7]
[342730274,1732090241879,-1180.33,0.00022465,7]
[342730275,1732090241887,-500.0,0.00022465,7]
[342730276,1732090241898,-454.51,0.00022465,7]
[342730277,1732090241907,-1004.57,0.00022465,7]
[342730278,1732090241916,-500.0,0.00022465,7]
[342730279,1732090241925,-500.0,0.00022465,7]
[342730280,1732090241934,-380.97,0.00022465,7]
[342730281,1732090241945,-500.0,0.00022465,7]
[342730282,1732090241955,-500.0,0.00022465,7]
[342730283,1732090241967,-642.93,0.00022465,7]
[342730284,1732090241976,-727.53,0.00022465,7]
[342730285,1732090241985,-500.0,0.00022465,7]
[342730286,1732090241994,-501.97,0.00022465,7]
[342730287,1732090242003,-375.41,0.00022465,7]
[342730288,1732090242012,-500.0,0.00022465,7]
[342730289,1732090242022,-606.49954564,0.00022465,7]
[342730290,1732090242032,-153.0,0.00022548,2]
[342730291,1732090242041,-153.0,0.00022548,2]
[342730292,1732090242050,-153.0,0.00022548,2]
[342730293,1732090242059,-153.0,0.00022548,2]
[342730294,1732090242068,-153.0,0.00022548,2]
[342730295,1732090242076,-153.0,0.00022548,2]
[342730296,1732090242085,-500.0,0.0002263,7]
[342730297,1732090242094,-160.9921,0.00022685,2]
[342730298,1732090242103,-170.17,0.00022739,7]
[342730299,1732090242112,-500.0,0.00022739,7]
[342730300,1732090242122,-494.35428758,0.00022739,7]
[342730301,1732090242132,-1180.33,0.00022739,7]
[342730302,1732090242141,-500.0,0.00022739,7]
[342730303,1732090242149,-151.0,0.00022739,7]
[342730304,1732090242158,-1004.57,0.00022739,7]
[342730305,1732090242168,-500.0,0.00022739,7]
[342730306,1732090242177,-500.0,0.00022739,7]
[342730307,1732090242187,-442.46349181,0.00022739,7]
[342730308,1732090242196,-500.0,0.00022739,7]
[342730309,1732090242206,-727.53,0.00022739,7]
[342730310,1732090242217,-500.0,0.00022739,7]
[342730311,1732090242228,-500.0,0.00022739,7]
[342730312,1732090242237,-500.0,0.00022904,7]
[342730314,1732090242246,-1514.3985,0.00023,7]
[342730316,1732090242256,-345.86298911,0.00023013,7]
[342730318,1732090242265,-1180.33,0.00023013,7]
[342730320,1732090242277,-500.0,0.00023013,7]
[342730322,1732090242288,-1004.57,0.00023013,7]
[342730324,1732090242298,-500.0,0.00023013,7]
[342730326,1732090242311,-500.0,0.00023013,7]
[342730327,1732090242324,-500.0,0.00023013,7]
[342730328,1732090242338,-727.53,0.00023013,7]
[342730329,1732090242351,-500.0,0.00023013,7]
[342730330,1732090242364,-500.0,0.00023013,7]
[342730332,1732090242377,-1276.05331939,0.00023172,30]
[342730333,1732090242387,-779.32139801,0.00023172,30]
[342730334,1732090242398,-500.0,0.00023178,7]
[342730335,1732090242410,-200.05067096,0.000232,2]
[342730337,1732090242422,-200.05067094,0.0002325,2]
[342730338,1732090242433,-387.32,0.00023277,3]
[342730339,1732090242445,-500.0,0.00023287,2]
[342730340,1732090242456,-1180.33,0.00023287,7]
[342730341,1732090242470,-500.0,0.00023287,7]
[342730342,1732090242482,-1004.57,0.00023287,7]
[342730343,1732090242493,-500.0,0.00023287,7]
[342730344,1732090242505,-500.0,0.00023287,7]
[342730345,1732090242516,-552.99,0.00023287,7]
[342730346,1732090242527,-727.53,0.00023287,7]
[342730347,1732090242539,-500.0,0.00023287,7]
[342730348,1732090242551,-500.0,0.00023287,7]
[342730349,1732090242561,-73173.81820509,0.000233,2]
[342730350,1732090242661,-547.74254717,0.00021917,7]
[342730351,1732090242673,-1530.20745283,0.00021917,7]
[342730352,1732090242684,-2077.95,0.00022191,7]
[342730353,1732090242694,-14788.52024678,0.000233,2]
[342730571,1732090246538,-500.0,0.00021917,7]
[342740810,1732091415344,199.0,0.00025,120]
[342740816,1732091432705,-164.824579,0.00013973,2]
[342740817,1732091432715,-162.530126,0.00020584,2]
[342740818,1732091432724,-85.25286893,0.00020988,2]
[342740819,1732091432736,-410.59100478,0.00020988,2]
[342740820,1732091432762,-1360.28974726,0.00020988,2]
[342740821,1732091432773,-58.41369663,0.00020988,2]
[342740822,1732091432783,-534.02384,0.00021098,2]
[342740823,1732091432792,-164.824579,0.00021209,2]
[342740824,1732091432801,-300.0,0.00021916,2]
[342740825,1732091432811,-504.24124427,0.00021917,7]
[342740826,1732091432820,-504.34258925,0.00021917,7]
[342740827,1732091432829,-543.15,0.00021917,7]
[342740828,1732091432838,-503.09607953,0.00021917,7]
[342740829,1732091432847,-506.47988755,0.00021917,7]
[342740830,1732091432857,-502.6213895,0.00021917,7]
[342740831,1732091432866,-501.26072607,0.00021917,7]
[342740832,1732091432875,-529.61500888,0.00021917,7]
[342740833,1732091432884,-500.0,0.00021917,7]
[342740834,1732091432900,-500.0,0.00021917,7]
[342740835,1732091432915,-503.87463746,0.00021917,7]
[342740836,1732091432924,-500.13230658,0.00021917,7]
[342740837,1732091432934,-192.39082705,0.00021917,7]
[342740838,1732091432944,-502.23786807,0.00021917,7]
[342740839,1732091432955,-501.89857448,0.00021917,7]
[342740840,1732091432965,-508.7574649,0.00021917,7]
[342740841,1732091432974,-502.82088066,0.00021917,7]
[342740842,1732091432984,-1000.0,0.00021917,2]
[342740843,1732091432999,-498.44323252,0.00021917,7]
[342740844,1732091433008,-509.46607042,0.00021917,7]
[342740845,1732091433017,-510.16769167,0.00021917,7]
[342740846,1732091433027,-375.69337726,0.00021917,7]
[342740847,1732091433037,-501.85310617,0.00021917,7]
[342740848,1732091433046,-501.10357607,0.00021917,7]
[342740849,1732091433056,-507.58454806,0.00021917,7]
[342740850,1732091433183,-503.22784336,0.00021917,7]
[342740851,1732091433193,-500.0,0.00021917,7]
[342740852,1732091433203,-501.46028098,0.00021917,7]
[342740853,1732091433213,-345.30037407,0.00021917,7]
[342740854,1732091433223,-509.17815165,0.00021917,7]
[342740855,1732091433232,-753.42,0.00021917,7]
[342740856,1732091433242,-500.0,0.00021917,7]
[342740857,1732091433254,-500.0,0.00021917,7]
[342740858,1732091433264,-500.0,0.00021917,7]
[342740859,1732091433273,-222.41547268,0.00021917,7]
[342740860,1732091433283,-500.0,0.00021917,7]
[342740861,1732091433293,-349.08321158,0.00021917,7]
[342740862,1732091433303,-885.24,0.00021917,7]
[342740863,1732091433313,-500.0,0.00021917,7]
[342740864,1732091433322,-545.65,0.00021917,7]
[342740865,1732091433332,-500.0,0.00021917,7]
[342740866,1732091433341,-1904.79,0.00021917,7]
[342740867,1732091433350,-2520.0,0.00022,2]
[342740868,1732091433360,-656.3095007,0.00022091,2]
[342740869,1732091433370,-216.74,0.00022191,7]
[342740870,1732091433379,-500.0,0.00022191,7]
[342740871,1732091433389,-753.42,0.00022191,7]
[342740872,1732091433398,-500.0,0.00022191,7]
[342740873,1732091433407,-885.24,0.00022191,7]
[342740874,1732091433417,-500.0,0.00022191,7]
[342740875,1732091433426,-545.65,0.00022191,7]
[342740877,1732091433436,-500.0,0.00022191,7]
[342740879,1732091433445,-1904.79,0.00022191,7]
[342740881,1732091433454,-229.2953415,0.00022465,2]
[342740883,1732091433464,-500.0,0.00022465,7]
[342740885,1732091433473,-753.42,0.00022465,7]
[342740887,1732091433482,-500.0,0.00022465,7]
[342740889,1732091433491,-885.24,0.00022465,7]
[342740890,1732091433504,-368.22,0.00022465,7]
[342740892,1732091433513,-545.65,0.00022465,7]
[342740894,1732091433522,-514.80902394,0.00022465,7]
[342740895,1732091433532,-1904.79,0.00022465,7]
[342740897,1732091433541,-500.0,0.00022739,7]
[342740898,1732091433551,-753.42,0.00022739,7]
[342740899,1732091433561,-500.0,0.00022739,7]
[342740900,1732091433570,-885.24,0.00022739,7]
[342740901,1732091433579,-545.65,0.00022739,7]
[342740902,1732091433589,-1904.79,0.00022739,7]
[342740903,1732091433598,-500.0,0.00022889,7]
[342740904,1732091433608,-500.0,0.00022889,7]
[342740905,1732091433617,-500.0,0.00022889,7]
[342740906,1732091433626,-522.19,0.00022889,7]
[342740907,1732091433636,-656.30950068,0.00022993,2]
[342740908,1732091433645,-500.0,0.00023013,7]
[342740909,1732091433654,-753.42,0.00023013,7]
[342740910,1732091433663,-500.0,0.00023013,7]
[342740911,1732091433672,-885.24,0.00023013,7]
[342740912,1732091433681,-545.65,0.00023013,7]
[342740913,1732091433691,-1904.79,0.00023013,7]
[342740914,1732091433701,-150.03800322,0.00023187,2]
[342740915,1732091433710,-246266.28285972,0.000232,2]
[342740916,1732091433719,-150.0380032,0.00023258,2]
[342740917,1732091433728,-614.11898422,0.00023287,2]
[342740918,1732091433738,-500.0,0.00023287,7]
[342740919,1732091433748,-753.42,0.00023287,7]
[342740920,1732091433757,-500.0,0.00023287,7]
[342740921,1732091433767,-885.24,0.00023287,7]
[342740922,1732091433776,-545.65,0.00023287,7]
[342740923,1732091433786,-1904.79,0.00023287,7]
[342740924,1732091433797,-500.0,0.00023299,2]
[342740925,1732091433807,-157.521357,0.000233,7]
[342740926,1732091433817,-150.112261,0.000233,9]
[342740927,1732091433827,-150.0380032,0.00023329,2]
[342740928,1732091433837,-150.112233,0.000234,5]
[342740929,1732091433847,-150.112233,0.000234,10]
[342740930,1732091433856,-150.112233,0.000234,7]
[342740931,1732091433865,-150.112233,0.000234,7]
[342740932,1732091433874,-150.112233,0.000234,10]
[342740933,1732091433883,-150.0380032,0.000234,2]
[342740934,1732091433893,-903.45399065,0.00023499,2]
[342740935,1732091433902,-23103.29089476,0.000235,5]
[342740936,1732091433962,-1271.92958567,0.000235,5]
[342740953,1732091439063,-602.30266043,0.00023499,2]
[342740954,1732091439073,-982.42306537,0.000235,5]
[342740962,1732091440658,-4097.51449374,0.000235,5]
[342740963,1732091440670,-954.834516,0.000235,5]
[342740966,1732091443626,-187.91437334,0.00023473,2]
[342740967,1732091443635,-9379.52478302,0.000235,5]
[342740970,1732091443684,-469.16098261,0.000235,5]
[342740972,1732091443696,-23700.7437925,0.000235,5]
[342740989,1732091446664,-18591.0,0.000235,5]
[342741056,1732092631842,-178.4067164,0.00013833,2]
[342741057,1732092631852,-161.221458,0.00013973,2]
[342741058,1732092631861,-701.4283899,0.00019541,2]
[342741060,1732092631870,-459.93,0.0001999,3]
[342741062,1732092631879,-192.5010742,0.0001999,3]
[342741065,1732092631898,-37.4689258,0.0001999,3]
[342741067,1732092631907,-320.8810742,0.0001999,3]
[342741110,1732092637866,-369.0289258,0.0001999,3]
[342741111,1732092637876,-300.0,0.00019999,2]
[342741112,1732092637886,-300.0,0.00019999,2]
[342741113,1732092637896,-284.26535383,0.0002,2]
[342741114,1732092637906,-530.0,0.0002,2]
[342741115,1732092637916,-459.0,0.0002,2]
[342741116,1732092637926,-458.0,0.0002,2]
[342741117,1732092637935,-3238.07180337,0.0002,2]
[342741118,1732092637949,-257.09,0.0002,2]
[342741119,1732092637961,-319.2398709,0.0002,2]
[342741120,1732092637976,-7103.45661741,0.0002,2]
[342741135,1732092639724,-19451.9853646,0.0002,2]
[342741145,1732092642779,-16219.67035836,0.0002,2]
[342741156,1732092645790,-18626.1202,0.0002,2]
[342741158,1732092738055,3284.3,0.0001,2]
[342741159,1732092738096,4453.20237453,0.0001,2]
[342741160,1732092738129,13532.59435937,0.0001,2]
[342741197,1732093096892,-177.841431,0.00013973,2]
[342741202,1732093434266,168.949359,0.00013973,2]
[342741261,1732093832160,-2899.05943152,0.00018,2]
[342741263,1732093832172,-4834.777073,0.00019086,2]
[342741266,1732093832184,-243.7970359,0.000195,2]
[342741268,1732093832196,-333.693,0.000196,2]
[342741270,1732093832208,-300.0,0.00019989,2]
[342741272,1732093832219,-300.0,0.00019989,2]
[342741274,1732093832230,-229.96,0.0001999,3]
[342741276,1732093832241,-689.92,0.0001999,3]
[342741277,1732093832252,-294.63081335,0.0002,2]
[342741278,1732093832262,-348717.43465731,0.0002,2]
[342741279,1732093832274,-2064.5055936,0.0002,2]
[342741280,1732093832286,-466.0,0.0002,2]
[342741318,1732093838260,-9370.89999971,0.0002,2]
[342741322,1732093838424,-4976.30857418,0.0002,2]
[342741329,1732093840012,-3216.03604392,0.0002,2]
[342741351,1732093843105,-1088.56561413,0.0002,2]
[342741352,1732093843158,-3120.29999998,0.0002,2]
[342741363,1732093854606,315.0,0.00025,120]
[342741379,1732094167523,160.501891,0.00013973,2]
[342741411,1732094935044,160.501891,0.00013973,2]
[342741432,1732095032350,-300.0,0.00018917,2]
[342741433,1732095032359,-177.58602924,0.00018917,2]
[342741467,1732095038589,-122.41397076,0.00018917,2]
[342741468,1732095038603,-1301.28484028,0.00018918,2]
[342741489,1732095041421,-9551.59225972,0.00018918,2]
[342741490,1732095041431,-616.6384147,0.00019084,2]
[342741491,1732095041439,-257.22745935,0.00019472,2]
[342741492,1732095041449,-7015.625,0.00019572,2]
[342741493,1732095041458,-266.954,0.000196,2]
[342741494,1732095041467,-721.38,0.0001999,3]
[342741495,1732095041477,-500.0,0.00019999,2]
[342741496,1732095041486,-500.0,0.00019999,2]
[342741497,1732095041495,-500.0,0.00019999,2]
[342741498,1732095041505,-500.0,0.00019999,2]
[342741499,1732095041514,-500.0,0.00019999,2]
[342741500,1732095041523,-158.80034274,0.00019999,2]
[342741501,1732095041532,-332.39818538,0.00019999,2]
[342741502,1732095041542,-500.0,0.00019999,2]
[342741503,1732095041551,-500.0,0.00019999,2]
[342741504,1732095041560,-500.0,0.00019999,2]
[342741505,1732095041685,-481.35962879,0.00019999,2]
[342741506,1732095041694,-294.62377871,0.0002,2]
[342741507,1732095041703,-46647.39401804,0.0002,2]
[342741508,1732095041715,-28004.17410356,0.0002,2]
[342741543,1732095043221,-500.49291856,0.00019973,2]
[342741545,1732095043231,-500.0,0.00019973,2]
[342741546,1732095043240,-157958.18388937,0.0002,2]
[342741547,1732095043336,-13059.72736809,0.0002,2]
[342741548,1732095043348,-282988.21831447,0.0002,2]
[342741549,1732095043358,-188.58580875,0.00020347,2]
[342741550,1732095043367,-1000.0,0.00020521,2]
[342741551,1732095043377,-420.0,0.00020621,2]
[342741552,1732095043386,-160.501891,0.00020807,2]
[342741553,1732095043395,-420.0,0.00020808,2]
[342741554,1732095043405,-500.0,0.00021522,2]
[342741555,1732095043414,-500.0,0.00021917,7]
[342741556,1732095043426,-500.0,0.00021917,7]
[342741558,1732095043435,-505.62925142,0.00021917,7]
[342741560,1732095043444,-503.25240077,0.00021917,7]
[342741562,1732095043453,-515.95648945,0.00021917,7]
[342741563,1732095043463,-580.19770332,0.00021917,7]
[342741564,1732095043472,-500.0,0.00021917,7]
[342741565,1732095043481,-271.26451616,0.00021917,2]
[342741566,1732095043490,-500.0,0.00021917,7]
[342741567,1732095043499,-502.69331649,0.00021917,7]
[342741568,1732095043509,-500.0,0.00021917,7]
[342741569,1732095043518,-500.0,0.00021917,7]
[342741570,1732095043528,-500.0,0.00021917,7]
[342741571,1732095043537,-503.1351237,0.00021917,7]
[342741572,1732095043547,-500.0,0.00021917,7]
[342741573,1732095043556,-633.92,0.00021917,7]
[342741574,1732095043565,-500.0,0.00021917,7]
[342741575,1732095043575,-500.0,0.00021917,7]
[342741576,1732095043584,-500.0,0.00021917,7]
[342741577,1732095043594,-211.12348636,0.00021917,7]
[342741578,1732095043603,-500.0,0.00021917,7]
[342741579,1732095043612,-500.0,0.00021917,7]
[342741580,1732095043621,-500.0,0.00021917,7]
[342741581,1732095043631,-500.0,0.00021917,7]
[342741582,1732095043640,-500.0,0.00021917,7]
[342741583,1732095043650,-500.0,0.00021917,7]
[342741584,1732095043659,-500.0,0.00021917,7]
[342741585,1732095043669,-500.0,0.00021917,7]
[342741586,1732095043678,-500.0,0.00021917,7]
[342741587,1732095043687,-500.0,0.00021917,7]
[342741588,1732095043697,-505.2611503,0.00021917,7]
[342741589,1732095043707,-500.0,0.00021917,7]
[342741590,1732095043718,-500.0,0.00021917,7]
[342741591,1732095043727,-500.0,0.00021917,7]
[342741592,1732095043736,-500.0,0.00021917,7]
[342741593,1732095043746,-500.0,0.00021917,7]
[342741594,1732095043756,-541.39,0.00021917,7]
[342741595,1732095043766,-500.0,0.00021917,7]
[342741596,1732095043776,-347.0191074,0.00021917,7]
[342741597,1732095043785,-500.0,0.00021917,7]
[342741598,1732095043795,-500.0,0.00021917,7]
[342741599,1732095043804,-500.0,0.00021917,7]
[342741600,1732095043814,-500.0,0.00021917,7]
[342741601,1732095043824,-500.0,0.00021917,7]
[342741602,1732095043834,-500.0,0.00021917,7]
[342741603,1732095043844,-500.0,0.00021917,7]
[342741604,1732095043854,-500.0,0.00021917,7]
[342741605,1732095043864,-500.0,0.00021917,7]
[342741606,1732095043874,-500.0,0.00021917,7]
[342741607,1732095043883,-500.0,0.00021917,7]
[342741608,1732095043892,-500.0,0.00021917,7]
[342741609,1732095043902,-500.0,0.00021917,7]
[342741610,1732095043911,-500.0,0.00021917,7]
[342741611,1732095043923,-500.0,0.00021917,7]
[342741612,1732095043932,-500.0,0.00021917,7]
[342741613,1732095043941,-600.32,0.00021917,7]
[342741614,1732095043951,-500.0,0.00021917,7]
[342741615,1732095043960,-500.0,0.00021917,7]
[342741616,1732095043969,-500.0,0.00021917,7]
[342741617,1732095043978,-500.0,0.00021917,7]
[342741618,1732095043987,-500.0,0.00021917,7]
[342741619,1732095043997,-500.0,0.00021917,7]
[342741620,1732095044006,-500.0,0.00021917,7]
[342741621,1732095044016,-500.0,0.00021917,7]
[342741622,1732095044026,-520.52,0.00021917,7]
[342741623,1732095044035,-500.0,0.00021917,7]
[342741624,1732095044044,-500.0,0.00021917,7]
[342741625,1732095044053,-500.0,0.00021917,7]
[342741626,1732095044063,-500.0,0.00021917,7]
[342741627,1732095044072,-500.0,0.00021917,7]
[342741628,1732095044081,-500.0,0.00021917,7]
[342741629,1732095044090,-500.0,0.00021917,7]
[342741630,1732095044100,-437.55793498,0.00021917,7]
[342741631,1732095044110,-500.0,0.00021917,7]
[342741632,1732095044119,-500.0,0.00021917,7]
[342741633,1732095044128,-500.0,0.00021917,7]
[342741634,1732095044139,-500.0,0.00021917,7]
[342741635,1732095044149,-500.0,0.00021917,7]
[342741636,1732095044158,-500.0,0.00021917,7]
[342741637,1732095044170,-500.0,0.00021917,7]
[342741638,1732095044179,-500.0,0.00021917,7]
[342741639,1732095044188,-500.0,0.00021917,7]
[342741640,1732095044198,-500.0,0.00021917,7]
[342741641,1732095044207,-500.0,0.00021917,7]
[342741642,1732095044216,-500.0,0.00021917,7]
[342741643,1732095044225,-500.0,0.00021917,7]
[342741644,1732095044235,-500.0,0.00021917,7]
[342741645,1732095044245,-500.0,0.00021917,7]
[342741646,1732095044255,-500.0,0.00021917,7]
[342741647,1732095044265,-500.0,0.00021917,7]
[342741648,1732095044275,-500.0,0.00021917,7]
[342741649,1732095044284,-500.0,0.00021917,7]
[342741650,1732095044293,-500.0,0.00021917,7]
[342741651,1732095044303,-500.0,0.00021917,7]
[342741652,1732095044312,-500.0,0.00021917,7]
[342741653,1732095044322,-500.0,0.00021917,7]
[342741654,1732095044331,-500.0,0.00021917,7]
[342741655,1732095044340,-626.5,0.00021917,7]
[342741656,1732095044350,-503.39603982,0.00021917,7]
[342741657,1732095044359,-500.0,0.00021917,7]
[342741658,1732095044368,-500.0,0.00021917,7]
[342741659,1732095044378,-500.0,0.00021917,7]
[342741660,1732095044388,-500.0,0.00021917,7]
[342741661,1732095044398,-500.0,0.00021917,7]
[342741662,1732095044408,-627.64,0.00021917,7]
[342741663,1732095044418,-610.55,0.00021917,7]
[342741664,1732095044427,-500.0,0.00021917,7]
[342741665,1732095044436,-500.0,0.00021917,7]
[342741666,1732095044446,-500.0,0.00021917,7]
[342741667,1732095044455,-500.0,0.00021917,7]
[342741668,1732095044464,-500.0,0.00021917,7]
[342741669,1732095044474,-500.0,0.00021917,7]
[342741670,1732095044483,-606.48,0.00021917,7]
[342741671,1732095044493,-500.0,0.00021917,7]
[342741672,1732095044503,-507.89644802,0.00021917,7]
[342741673,1732095044513,-643.5,0.00021917,7]
[342741674,1732095044522,-500.0,0.00021917,7]
[342741675,1732095044532,-500.0,0.00021917,7]
[342741676,1732095044541,-500.0,0.00021917,7]
[342741677,1732095044551,-500.0,0.00021917,7]
[342741678,1732095044560,-647.04,0.00021917,7]
[342741679,1732095044569,-500.0,0.00021917,7]
[342741680,1732095044580,-500.0,0.00021917,7]
[342741681,1732095044589,-517.24896597,0.00021917,7]
[342741682,1732095044599,-500.0,0.00021917,7]
[342741683,1732095044610,-500.0,0.00021917,7]
[342741684,1732095044620,-500.0,0.00021917,7]
[342741685,1732095044631,-500.0,0.00021917,7]
[342741686,1732095044641,-500.0,0.00021917,7]
[342741687,1732095044650,-249.3767194,0.00021917,7]
[342741688,1732095044664,-250.6232806,0.00021917,7]
[342741689,1732095044675,-500.0,0.00021917,7]
[342741690,1732095044684,-500.0,0.00021917,7]
[342741691,1732095044693,-500.0,0.00021917,7]
[342741692,1732095044702,-500.0,0.00021917,7]
[342741693,1732095044711,-500.0,0.00021917,7]
[342741694,1732095044721,-500.0,0.00021917,7]
[342741695,1732095044730,-502.73012298,0.00021917,7]
[342741696,1732095044739,-500.0,0.00021917,7]
[342741697,1732095044748,-500.0,0.00021917,7]
[342741698,1732095044757,-500.0,0.00021917,7]
[342741699,1732095044766,-500.0,0.00021917,7]
[342741700,1732095044775,-510.82808382,0.00021917,7]
[342741701,1732095044784,-1000.0,0.00021917,2]